[Event "Cracovia Festival-A 2023"]
[Site "Krakow"]
[Date "2024.01.02"]
[Round "7.40"]
[White "Baum, Jonasz"]
[Black "Gaurav Rajesh Zagade"]
[Result "1-0"]
[ECO "E06"]
[WhiteElo "2421"]
[BlackElo "2126"]
[Annotator "RC"]
[PlyCount "113"]
[EventDate "2023.12.24"]
[EventType "swiss"]
[EventCountry "POL"]
[SourceTitle "playchess.com"]
[Source "ChessBase"]
[SourceQuality "1"]
[TimeControl "40/5400+30:1800+30"]

1. d4 {[%emt 0:00:02]} d5 {[%emt 0:00:17]} 2. c4 {[%emt 0:00:04]} e6 {[%emt 0:00:10]} 3. Nf3 {[%emt 0:00:07]} Nf6 {[%emt 0:00:56]} 4. g3 {[%emt 0:00:34]} Be7 {[%emt 0:06:34]} 5. Bg2 {[%emt 0:00:08]} O-O {[%emt 0:00:10]} 6. O-O {[%emt 0:01:16]} dxc4 {[%emt 0:00:08]} 7. Qa4 {[%emt 0:00:08]} a6 {[%emt 0:02:32]} 8. Qxc4 {[%emt 0:00:05]} b5 {[%emt 0:00:11]} 9. Qc2 {[%emt 0:00:04]} Bb7 {[%emt 0:00:14]} 10. Bd2 {[%emt 0:00:06]} Be4 {[%emt 0:02:01]} 11. Qc1 {[%emt 0:00:33]} Nbd7 {[%emt 0:02:59]} 12. Ba5 {[%emt 0:01:14]} Rc8 {[%emt 0:07:09]} 13. Nbd2 {[%emt 0:08:25]} Bb7 {[%emt 0:02:00]} 14. Ne5 {[%emt 0:18:29]} Bxg2 {[%emt 0:01:27]} 15. Kxg2 {[%emt 0:00:06]} Nxe5 {[%emt 0:01:32]} 16. dxe5 {[%emt 0:00:09]} Ng4 {[%emt 0:13:19]} 17. Nf3 {[%emt 0:01:53]} Qd5 {[%emt 0:02:17]} 18. Rd1 {[%emt 0:11:57]} Qc5 {[%emt 0:02:24]} 19. e3 {[%emt 0:12:56]} f6 {[%emt 0:07:31]} 20. Qxc5 {[%emt 0:01:33]} Bxc5 {[%emt 0:00:14]} 21. Rdc1 {[%emt 0:03:37]} Bb6 {[%emt 0:11:58]} 22. Bxb6 {[%emt 0:00:13]} cxb6 {[%emt 0:00:07]} 23. exf6 {[%emt 0:00:23]} Nxf6 {[%emt 0:02:04]} 24. Rxc8 {[%emt 0:07:47]} Rxc8 {[%emt 0:00:06]} 25. Rd1 {[%emt 0:00:03]} h6 {[%emt 0:05:20]} 26. Ne1 {[%emt 0:01:44]} Rc6 {[%emt 0:02:40]} 27. f3 {[%emt 0:00:27]} Kf7 {[%emt 0:01:53]} 28. Kf2 {[%emt 0:01:26]} Ke7 {[%emt 0:00:12]} 29. Ke2 {[%emt 0:01:50]} Rc4 {[%emt 0:02:51]} 30. Nd3 {[%emt 0:01:18]} a5 {[%emt 0:03:03]} 31. Kd2 {[%emt 0:04:17]} g5 {[%emt 0:01:18]} 32. h3 {[%emt 0:02:54]} Nd7 {[%emt 0:02:30]} 33. Rc1 {[%emt 0:02:57]} e5 {[%emt 0:01:18]} 34. e4 {[%emt 0:05:01]} Rxc1 {[%emt 0:02:20]} 35. Nxc1 {[%emt 0:01:42]} Nb8 {[%emt 0:05:18]} 36. Nd3 {[%emt 0:00:50]} Nc6 {[%emt 0:00:19]} 37. Ke3 {[%emt 0:00:12]} Ke6 {[%emt 0:07:10]} 38. f4 {[%emt 0:00:25]} exf4+ {[%emt 0:00:36]} 39. gxf4 {[%emt 0:00:04]} gxf4+ {[%emt 0:00:29]} 40. Kxf4 {[%emt 0:00:00]} b4 {[%emt 0:00:00]} 41. Kg4 {[%emt 0:11:32]} Kf6 {[%emt 0:10:46]} 42. Kh5 {[%emt 0:01:41]} Ne5 {[%emt 0:11:15]} 43. Nxe5 {[%emt 0:12:42]} Kxe5 {[%emt 0:00:05]} 44. Kxh6 {[%emt 0:00:04]} Kxe4 {[%emt 0:00:21]} 45. h4 {[%emt 0:00:48]} Kd3 {[%emt 0:01:17]} 46. h5 {[%emt 0:00:47]} Kc2 {[%emt 0:00:24]} 47. b3 {[%emt 0:01:29]} Kb2 {[%emt 0:00:21]} 48. Kg5 {[%emt 0:00:04]} Kxa2 {[%emt 0:00:08]} 49. h6 {[%emt 0:00:04]} a4 {[%emt 0:03:26]} 50. h7 {[%emt 0:00:06]} axb3 {[%emt 0:00:33]} 51. h8=Q {[%emt 0:00:05]} b2 {[%emt 0:00:33]} 52. Qa8+ {[%emt 0:02:29]} Kb1 {[%emt 0:02:41]} 53. Kf4 {[%emt 0:00:20]} Kc1 {[%emt 0:01:07]} 54. Qc6+ {[%emt 0:00:13]} Kd2 {[%emt 0:00:24]} 55. Qd5+ {[%emt 0:00:14]} Kc2 {[%emt 0:00:33]} 56. Qc4+ {[%emt 0:00:11]} Kd1 {[%emt 0:01:15]} 57. Qxb4 {[%emt 0:00:21]} 1-0

[Event "Cracovia Festival-A 2023"]
[Site "Krakow"]
[Date "2024.01.02"]
[Round "7.41"]
[White "Mirski, Stanislaw"]
[Black "Berin, Artem"]
[Result "0-1"]
[ECO "E08"]
[WhiteElo "2187"]
[BlackElo "2321"]
[Annotator "RC"]
[PlyCount "98"]
[EventDate "2023.12.24"]
[EventType "swiss"]
[EventCountry "POL"]
[SourceTitle "playchess.com"]
[Source "ChessBase"]
[SourceQuality "1"]
[TimeControl "40/5400+30:1800+30"]

1. d4 {[%emt 0:00:03]} Nf6 {[%emt 0:00:35]} 2. Nf3 {[%emt 0:00:07]} e6 {[%emt 0:00:23]} 3. g3 {[%emt 0:00:05]} d5 {[%emt 0:00:03]} 4. Bg2 {[%emt 0:00:04]} Be7 {[%emt 0:00:05]} 5. O-O {[%emt 0:00:06]} O-O {[%emt 0:00:04]} 6. c4 {[%emt 0:00:03]} Nbd7 {[%emt 0:00:05]} 7. Qc2 {[%emt 0:01:25]} a5 {[%emt 0:00:06]} 8. Rd1 {[%emt 0:02:28]} h6 {[%emt 0:00:10]} 9. Nc3 {[%emt 0:01:56]} c6 {[%emt 0:00:22]} 10. b3 {[%emt 0:02:10]} b5 {[%emt 0:00:08]} 11. a3 {[%emt 0:04:03]} bxc4 {[%emt 0:06:16]} 12. bxc4 {[%emt 0:00:06]} Ba6 {[%emt 0:00:06]} 13. c5 {[%emt 0:13:21]} Ne8 {[%emt 0:09:12]} 14. e4 {[%emt 0:05:42]} Nc7 {[%emt 0:03:51]} 15. Bf4 {[%emt 0:07:06]} Nb5 {[%emt 0:02:05]} 16. Na4 {[%emt 0:13:28]} Bf6 {[%emt 0:12:56]} 17. e5 {[%emt 0:03:09]} Be7 {[%emt 0:00:14]} 18. h4 {[%emt 0:01:33]} f5 {[%emt 0:08:21]} 19. exf6 {[%emt 0:01:58]} Bxf6 {[%emt 0:00:19]} 20. Bh3 {[%emt 0:02:32]} Re8 {[%emt 0:01:41]} 21. Qg6 {[%emt 0:12:18]} Nf8 {[%emt 0:00:45]} 22. Qh5 {[%emt 0:00:03]} Ra7 {[%emt 0:04:09]} 23. Be5 {[%emt 0:01:09]} Nd7 {[%emt 0:06:12]} 24. Qg6 {[%emt 0:00:24]} Bxe5 {[%emt 0:23:02]} 25. Bxe6+ {[%emt 0:02:02]} Kh8 {[%emt 0:00:05]} 26. Bxd7 {[%emt 0:04:01]} Rxd7 {[%emt 0:00:49]} 27. Nxe5 {[%emt 0:02:35]} Nxd4 {[%emt 0:00:09]} 28. Rxd4 {[%emt 0:04:34]} Rxe5 {[%emt 0:00:31]} 29. Qxc6 {[%emt 0:00:02]} Bb7 {[%emt 0:08:06]} 30. Qb6 {[%emt 0:06:02]} Rc7 {[%emt 0:01:50]} 31. Qxa5 {[%emt 0:02:40]} Qe7 {[%emt 0:00:06]} 32. Rc1 {[%emt 0:01:34]} Bc6 {[%emt 0:02:08]} 33. Nb6 {[%emt 0:00:13]} Ra7 {[%emt 0:02:34]} 34. Qc3 {[%emt 0:00:14]} Qe6 {[%emt 0:00:54]} 35. a4 {[%emt 0:00:35]} Rf7 {[%emt 0:00:20]} 36. Rf1 {[%emt 0:04:08]} Re2 {[%emt 0:00:31]} 37. Qd3 {[%emt 0:00:33]} Ra2 {[%emt 0:00:48]} 38. Qe3 {[%emt 0:02:15]} Rfxf2 {[%emt 0:01:49]} 39. Qxf2 {[%emt 0:01:59]} Rxf2 {[%emt 0:00:06]} 40. Rxf2 {[%emt 0:00:00]} Qe3 {[%emt 0:00:00]} 41. Rdf4 {[%emt 0:04:43]} Qxg3+ {[%emt 0:02:31]} 42. Kf1 {[%emt 0:00:06]} Qd3+ {[%emt 0:00:42]} 43. Kg1 {[%emt 0:00:01]} d4 {[%emt 0:01:58]} 44. Kh2 {[%emt 0:00:04]} Qd1 {[%emt 0:02:04]} 45. Kh3 {[%emt 0:06:51]} d3 {[%emt 0:00:53]} 46. Nc4 {[%emt 0:01:07]} Qh1+ {[%emt 0:00:37]} 47. Rh2 {[%emt 0:00:50]} Qg1 {[%emt 0:01:45]} 48. Rf8+ {[%emt 0:07:29]} Kh7 {[%emt 0:00:07]} 49. Rf7 {[%emt 0:00:02]} Bd5 {[%emt 0:00:25]} 0-1

[Event "Cracovia Festival-A 2023"]
[Site "Krakow"]
[Date "2024.01.02"]
[Round "7.42"]
[White "Kyc, Jerzy"]
[Black "Gkavardinas, Antonios"]
[Result "0-1"]
[ECO "B13"]
[WhiteElo "2304"]
[BlackElo "2141"]
[Annotator "RC"]
[PlyCount "116"]
[EventDate "2023.12.24"]
[EventType "swiss"]
[EventCountry "POL"]
[SourceTitle "playchess.com"]
[Source "ChessBase"]
[SourceQuality "1"]
[TimeControl "40/5400+30:1800+30"]

1. e4 {[%emt 0:00:12]} c6 {[%emt 0:00:07]} 2. d4 {[%emt 0:00:07]} d5 {[%emt 0:00:08]} 3. exd5 {[%emt 0:01:31]} cxd5 {[%emt 0:00:13]} 4. c4 {[%emt 0:00:01]} Nf6 {[%emt 0:00:34]} 5. Nc3 {[%emt 0:00:04]} Nc6 {[%emt 0:00:12]} 6. Bg5 {[%emt 0:00:51]} dxc4 {[%emt 0:00:54]} 7. d5 {[%emt 0:00:04]} Ne5 {[%emt 0:00:14]} 8. f4 {[%emt 0:00:46]} Nd3+ {[%emt 0:17:27]} 9. Bxd3 {[%emt 0:02:58]} cxd3 {[%emt 0:00:02]} 10. Qxd3 {[%emt 0:00:18]} g6 {[%emt 0:02:04]} 11. Nf3 {[%emt 0:09:42]} Bg7 {[%emt 0:00:54]} 12. Rd1 {[%emt 0:18:38]} O-O {[%emt 0:01:41]} 13. Ne5 {[%emt 0:02:55]} a6 {[%emt 0:04:37]} 14. Qe2 {[%emt 0:08:53]} Qd6 {[%emt 0:03:28]} 15. O-O {[%emt 0:02:49]} Bf5 {[%emt 0:03:17]} 16. h3 {[%emt 0:13:28]} Rfe8 {[%emt 0:04:36]} 17. g4 {[%emt 0:11:31]} Bd7 {[%emt 0:01:27]} 18. Nxd7 {[%emt 0:01:13]} Nxd7 {[%emt 0:05:26]} 19. Rf3 {[%emt 0:07:18]} Rac8 {[%emt 0:11:34]} 20. Ne4 {[%emt 0:08:43]} Qb6+ {[%emt 0:01:23]} 21. Nf2 {[%emt 0:01:07]} Nf6 {[%emt 0:03:56]} 22. Re3 {[%emt 0:02:41]} Rcd8 {[%emt 0:10:34]} 23. Bxf6 {[%emt 0:02:18]} Bxf6 {[%emt 0:02:40]} 24. Rb3 {[%emt 0:01:34]} Qc7 {[%emt 0:00:46]} 25. Ne4 {[%emt 0:00:47]} Bg7 {[%emt 0:01:17]} 26. Qf3 {[%emt 0:00:49]} b5 {[%emt 0:01:46]} 27. f5 {[%emt 0:01:04]} Qe5 {[%emt 0:03:58]} 28. fxg6 {[%emt 0:00:11]} fxg6 {[%emt 0:01:27]} 29. Nc5 {[%emt 0:00:58]} Rf8 {[%emt 0:02:30]} 30. Qe4 {[%emt 0:00:37]} Qxe4 {[%emt 0:02:53]} 31. Nxe4 {[%emt 0:00:01]} Rf4 {[%emt 0:00:25]} 32. Re3 {[%emt 0:01:14]} Bxb2 {[%emt 0:02:16]} 33. Kg2 {[%emt 0:00:10]} Rc8 {[%emt 0:04:31]} 34. Re2 {[%emt 0:00:56]} Ba3 {[%emt 0:01:46]} 35. Ng5 {[%emt 0:00:54]} Rc3 {[%emt 0:01:24]} 36. Ne4 {[%emt 0:00:36]} Rc4 {[%emt 0:01:01]} 37. Ng5 {[%emt 0:00:16]} h5 {[%emt 0:03:15]} 38. Ne6 {[%emt 0:00:27]} Rfe4 {[%emt 0:01:28]} 39. Rxe4 {[%emt 0:00:38]} Rxe4 {[%emt 0:00:01]} 40. g5 {[%emt 0:00:00]} Re2+ {[%emt 0:00:00]} 41. Kg1 {[%emt 0:01:32]} Rc2 {[%emt 0:11:44]} 42. Rd3 {[%emt 0:13:03]} Bd6 {[%emt 0:03:09]} 43. Rf3 {[%emt 0:00:24]} Rc8 {[%emt 0:00:09]} 44. Kf1 {[%emt 0:02:00]} b4 {[%emt 0:02:27]} 45. Ke2 {[%emt 0:02:05]} a5 {[%emt 0:03:50]} 46. Kd3 {[%emt 0:03:46]} Rc3+ {[%emt 0:06:05]} 47. Ke4 {[%emt 0:00:09]} Rxf3 {[%emt 0:01:18]} 48. Kxf3 {[%emt 0:00:01]} a4 {[%emt 0:00:08]} 49. Ke4 {[%emt 0:00:32]} b3 {[%emt 0:00:59]} 50. axb3 {[%emt 0:00:02]} a3 {[%emt 0:00:55]} 51. Nd4 {[%emt 0:00:42]} a2 {[%emt 0:00:52]} 52. Nc2 {[%emt 0:00:02]} Ba3 {[%emt 0:00:14]} 53. Kd4 {[%emt 0:07:55]} Bb2+ {[%emt 0:00:45]} 54. Kc5 {[%emt 0:02:00]} a1=Q {[%emt 0:01:14]} 55. Nxa1 {[%emt 0:00:01]} Bxa1 {[%emt 0:00:07]} 56. b4 {[%emt 0:02:07]} Be5 {[%emt 0:00:54]} 57. Kc6 {[%emt 0:00:08]} Bf4 {[%emt 0:01:39]} 58. b5 {[%emt 0:02:42]} Bxg5 {[%emt 0:00:26]} 0-1

[Event "Cracovia Festival-A 2023"]
[Site "Krakow"]
[Date "2024.01.02"]
[Round "7.43"]
[White "Fishchuk, Vladyslav"]
[Black "Bilczewski, Kacper"]
[Result "1/2-1/2"]
[ECO "D10"]
[WhiteElo "2198"]
[BlackElo "2125"]
[Annotator "RC"]
[PlyCount "83"]
[EventDate "2023.12.24"]
[EventType "swiss"]
[EventCountry "POL"]
[SourceTitle "playchess.com"]
[Source "ChessBase"]
[SourceQuality "1"]
[TimeControl "40/5400+30:1800+30"]

1. d4 {[%emt 0:00:04]} d5 {[%emt 0:05:49]} 2. c4 {[%emt 0:00:10]} c6 {[%emt 0:00:06]} 3. Nf3 {[%emt 0:00:04]} Nf6 {[%emt 0:00:04]} 4. cxd5 {[%emt 0:00:06]} cxd5 {[%emt 0:00:10]} 5. Nc3 {[%emt 0:00:05]} Nc6 {[%emt 0:01:04]} 6. Bf4 {[%emt 0:00:06]} e6 {[%emt 0:01:05]} 7. e3 {[%emt 0:00:40]} a6 {[%emt 0:00:32]} 8. Bd3 {[%emt 0:01:28]} Be7 {[%emt 0:01:04]} 9. h3 {[%emt 0:01:06]} O-O {[%emt 0:00:26]} 10. O-O {[%emt 0:00:10]} b5 {[%emt 0:01:07]} 11. Qe2 {[%emt 0:04:21]} Bb7 {[%emt 0:01:56]} 12. Rfc1 {[%emt 0:03:22]} Rc8 {[%emt 0:01:26]} 13. a4 {[%emt 0:05:36]} b4 {[%emt 0:01:36]} 14. Na2 {[%emt 0:03:58]} Qb6 {[%emt 0:03:47]} 15. Nd2 {[%emt 0:00:30]} Na5 {[%emt 0:00:53]} 16. b3 {[%emt 0:14:21]} Ne4 {[%emt 0:04:42]} 17. Bxe4 {[%emt 0:14:42]} dxe4 {[%emt 0:00:14]} 18. Nc4 {[%emt 0:00:29]} Nxc4 {[%emt 0:00:06]} 19. bxc4 {[%emt 0:00:04]} a5 {[%emt 0:00:23]} 20. c5 {[%emt 0:00:27]} Qc6 {[%emt 0:02:49]} 21. Rcb1 {[%emt 0:00:52]} Ba6 {[%emt 0:00:40]} 22. Qg4 {[%emt 0:07:55]} Bd3 {[%emt 0:02:24]} 23. Rb2 {[%emt 0:01:10]} f5 {[%emt 0:00:51]} 24. Qd1 {[%emt 0:00:13]} Rfd8 {[%emt 0:13:57]} 25. Nc1 {[%emt 0:01:52]} Bc4 {[%emt 0:00:50]} 26. Nb3 {[%emt 0:01:18]} Bxb3 {[%emt 0:00:13]} 27. Qxb3 {[%emt 0:00:08]} Qd5 {[%emt 0:00:03]} 28. Qc2 {[%emt 0:01:29]} Bf6 {[%emt 0:00:51]} 29. Rc1 {[%emt 0:00:51]} Rc6 {[%emt 0:00:09]} 30. Qe2 {[%emt 0:01:44]} e5 {[%emt 0:04:23]} 31. dxe5 {[%emt 0:00:40]} Bxe5 {[%emt 0:00:50]} 32. Bxe5 {[%emt 0:01:23]} Qxe5 {[%emt 0:00:07]} 33. Rd2 {[%emt 0:00:09]} Rxd2 {[%emt 0:06:58]} 34. Qxd2 {[%emt 0:00:08]} Rxc5 {[%emt 0:00:18]} 35. Qd8+ {[%emt 0:02:25]} Kf7 {[%emt 0:00:05]} 36. Qd7+ {[%emt 0:05:38]} Kg6 {[%emt 0:04:14]} 37. Rxc5 {[%emt 0:03:14]} Qxc5 {[%emt 0:00:21]} 38. Qe6+ {[%emt 0:01:02]} Kg5 {[%emt 0:01:49]} 39. Kh2 {[%emt 0:06:45]} Qc7+ {[%emt 0:03:28]} 40. g3 {[%emt 0:00:00]} g6 {[%emt 0:00:00]} 41. Kg2 {[%emt 0:02:35]} Qb8 {[%emt 0:03:53]} 42. Qe7+ {[%emt 0:01:41]} 1/2-1/2

[Event "Cracovia Festival-A 2023"]
[Site "Krakow"]
[Date "2024.01.02"]
[Round "7.44"]
[White "Manko, Mariia"]
[Black "Flak, Pawel"]
[Result "1/2-1/2"]
[ECO "A40"]
[WhiteElo "2128"]
[BlackElo "2145"]
[Annotator "RC"]
[PlyCount "141"]
[EventDate "2023.12.24"]
[EventType "swiss"]
[EventCountry "POL"]
[SourceTitle "playchess.com"]
[Source "ChessBase"]
[SourceQuality "1"]
[TimeControl "40/5400+30:1800+30"]

1. d4 {[%emt 0:13:44]} b6 {[%emt 0:00:43]} 2. g3 {[%emt 0:00:15]} Bb7 {[%emt 0:00:01]} 3. Nf3 {[%emt 0:00:09]} Nf6 {[%emt 0:00:16]} 4. Bg2 {[%emt 0:00:11]} g6 {[%emt 0:00:35]} 5. O-O {[%emt 0:01:34]} Bg7 {[%emt 0:00:01]} 6. c4 {[%emt 0:00:48]} O-O {[%emt 0:00:05]} 7. Nc3 {[%emt 0:00:23]} Ne4 {[%emt 0:02:57]} 8. Qb3 {[%emt 0:12:08]} Nxc3 {[%emt 0:00:37]} 9. bxc3 {[%emt 0:03:01]} Nc6 {[%emt 0:03:33]} 10. c5 {[%emt 0:03:31]} Na5 {[%emt 0:00:31]} 11. Qb4 {[%emt 0:05:10]} d6 {[%emt 0:01:06]} 12. cxb6 {[%emt 0:01:49]} cxb6 {[%emt 0:00:30]} 13. Re1 {[%emt 0:03:21]} Qc7 {[%emt 0:00:59]} 14. e4 {[%emt 0:01:49]} Rac8 {[%emt 0:02:41]} 15. Bd2 {[%emt 0:01:17]} Nc4 {[%emt 0:01:12]} 16. Rac1 {[%emt 0:02:19]} e5 {[%emt 0:07:52]} 17. d5 {[%emt 0:04:39]} Qc5 {[%emt 0:04:15]} 18. Bf1 {[%emt 0:05:07]} Nxd2 {[%emt 0:06:14]} 19. Nxd2 {[%emt 0:01:22]} Bh6 {[%emt 0:00:02]} 20. Qxc5 {[%emt 0:10:25]} Rxc5 {[%emt 0:00:02]} 21. Nb3 {[%emt 0:01:27]} Rc7 {[%emt 0:00:02]} 22. Rc2 {[%emt 0:01:38]} Bc8 {[%emt 0:02:42]} 23. a4 {[%emt 0:04:37]} f5 {[%emt 0:04:33]} 24. c4 {[%emt 0:02:39]} fxe4 {[%emt 0:05:09]} 25. Nd2 {[%emt 0:00:40]} Bxd2 {[%emt 0:06:06]} 26. Rxd2 {[%emt 0:00:08]} Bf5 {[%emt 0:00:04]} 27. a5 {[%emt 0:02:58]} bxa5 {[%emt 0:01:51]} 28. Ra1 {[%emt 0:04:31]} Rb8 {[%emt 0:05:48]} 29. Rda2 {[%emt 0:00:41]} Rc5 {[%emt 0:03:05]} 30. h3 {[%emt 0:00:20]} Bd7 {[%emt 0:08:55]} 31. Rxa5 {[%emt 0:01:44]} Rxa5 {[%emt 0:00:01]} 32. Rxa5 {[%emt 0:00:07]} Rb1 {[%emt 0:00:07]} 33. g4 {[%emt 0:00:33]} Kf8 {[%emt 0:06:11]} 34. Rxa7 {[%emt 0:00:12]} Ke7 {[%emt 0:00:06]} 35. Kg2 {[%emt 0:02:13]} Kd8 {[%emt 0:05:59]} 36. Ra8+ {[%emt 0:05:43]} Kc7 {[%emt 0:12:04]} 37. Ra7+ {[%emt 0:00:14]} Rb7 {[%emt 0:00:46]} 38. Rxb7+ {[%emt 0:00:47]} Kxb7 {[%emt 0:00:01]} 39. Kg3 {[%emt 0:02:42]} g5 {[%emt 0:01:14]} 40. Bg2 {[%emt 0:00:00]} Kb6 {[%emt 0:00:00]} 41. Bxe4 {[%emt 0:14:52]} h6 {[%emt 0:01:04]} 42. Kf3 {[%emt 0:04:33]} Kc5 {[%emt 0:00:35]} 43. Bf5 {[%emt 0:01:39]} Ba4 {[%emt 0:00:16]} 44. Ke3 {[%emt 0:01:37]} Kxc4 {[%emt 0:00:46]} 45. Be6 {[%emt 0:00:13]} Bc2 {[%emt 0:04:05]} 46. f3 {[%emt 0:05:49]} Bg6 {[%emt 0:07:24]} 47. Bg8 {[%emt 0:01:12]} h5 {[%emt 0:01:45]} 48. gxh5 {[%emt 0:00:25]} Bxh5 {[%emt 0:00:02]} 49. Be6 {[%emt 0:00:29]} Bg6 {[%emt 0:00:16]} 50. Bg8 {[%emt 0:00:21]} Bf5 {[%emt 0:09:08]} 51. Be6 {[%emt 0:00:24]} Bh7 {[%emt 0:00:04]} 52. Bf7 {[%emt 0:00:26]} Kc3 {[%emt 0:01:06]} 53. Be6 {[%emt 0:01:33]} Bg6 {[%emt 0:00:15]} 54. Bd7 {[%emt 0:00:59]} Bh7 {[%emt 0:03:50]} 55. Be6 {[%emt 0:00:32]} Kc2 {[%emt 0:00:06]} 56. Ke2 {[%emt 0:00:51]} Bd3+ {[%emt 0:00:39]} 57. Ke3 {[%emt 0:00:05]} Bg6 {[%emt 0:00:04]} 58. Ke2 {[%emt 0:00:29]} Kc1 {[%emt 0:03:51]} 59. Bd7 {[%emt 0:01:16]} Bf7 {[%emt 0:03:54]} 60. Be6 {[%emt 0:00:12]} Be8 {[%emt 0:00:58]} 61. Bg4 {[%emt 0:03:35]} Ba4 {[%emt 0:02:49]} 62. Bf5 {[%emt 0:01:51]} Bd1+ {[%emt 0:00:52]} 63. Ke3 {[%emt 0:00:16]} Bb3 {[%emt 0:00:12]} 64. Be4 {[%emt 0:01:02]} Ba4 {[%emt 0:02:08]} 65. Bf5 {[%emt 0:00:07]} Bb3 {[%emt 0:03:18]} 66. Be4 {[%emt 0:00:07]} Kb2 {[%emt 0:01:49]} 67. Kf2 {[%emt 0:01:20]} Ba4 {[%emt 0:00:57]} 68. Bf5 {[%emt 0:00:04]} Be8 {[%emt 0:01:13]} 69. Kg3 {[%emt 0:00:47]} Bh5 {[%emt 0:00:02]} 70. Bg4 {[%emt 0:00:05]} Bg6 {[%emt 0:00:08]} 71. Be6 {[%emt 0:00:04]} 1/2-1/2

[Event "Cracovia Festival-A 2023"]
[Site "Krakow"]
[Date "2024.01.02"]
[Round "7.45"]
[White "Pacuszka, Tomasz"]
[Black "Pniaczek, Marek"]
[Result "1-0"]
[ECO "A06"]
[WhiteElo "2124"]
[BlackElo "2135"]
[Annotator "NA"]
[PlyCount "77"]
[EventDate "2023.12.24"]
[EventType "swiss"]
[EventCountry "POL"]
[SourceTitle "playchess.com"]
[Source "ChessBase"]
[SourceQuality "1"]
[TimeControl "40/5400+30:1800+30"]

1. Nf3 {[%emt 0:00:01]} d5 {[%emt 0:09:53]} 2. b3 {[%emt 0:00:52]} Nf6 {[%emt 0:00:19]} 3. Bb2 {[%emt 0:00:06]} Bf5 {[%emt 0:00:04]} 4. e3 {[%emt 0:00:28]} e6 {[%emt 0:00:13]} 5. Be2 {[%emt 0:02:23]} h6 {[%emt 0:00:11]} 6. O-O {[%emt 0:02:23]} Be7 {[%emt 0:00:59]} 7. c4 {[%emt 0:02:14]} O-O {[%emt 0:00:30]} 8. d4 {[%emt 0:03:58]} c6 {[%emt 0:00:22]} 9. Nc3 {[%emt 0:01:30]} Nbd7 {[%emt 0:00:09]} 10. Rc1 {[%emt 0:05:16]} Rc8 {[%emt 0:01:07]} 11. c5 {[%emt 0:01:57]} b5 {[%emt 0:03:40]} 12. b4 {[%emt 0:01:53]} a5 {[%emt 0:01:22]} 13. a3 {[%emt 0:00:12]} a4 {[%emt 0:00:45]} 14. Nxb5 {[%emt 0:01:02]} cxb5 {[%emt 0:00:23]} 15. Bxb5 {[%emt 0:00:07]} Ne4 {[%emt 0:02:06]} 16. Qxa4 {[%emt 0:00:59]} Ra8 {[%emt 0:00:13]} 17. Qd1 {[%emt 0:00:48]} Qc7 {[%emt 0:02:06]} 18. Be2 {[%emt 0:10:19]} Rfb8 {[%emt 0:01:39]} 19. Nd2 {[%emt 0:10:16]} Bf6 {[%emt 0:05:24]} 20. Nxe4 {[%emt 0:07:04]} Bxe4 {[%emt 0:00:14]} 21. Qb3 {[%emt 0:02:58]} Qa7 {[%emt 0:01:55]} 22. f3 {[%emt 0:10:37]} Bg6 {[%emt 0:03:08]} 23. Rfd1 {[%emt 0:00:41]} Be7 {[%emt 0:00:19]} 24. Qc3 {[%emt 0:00:34]} Qa4 {[%emt 0:01:06]} 25. Rd2 {[%emt 0:01:24]} Kf8 {[%emt 0:03:33]} 26. Bd1 {[%emt 0:00:41]} Qb5 {[%emt 0:00:19]} 27. Qb3 {[%emt 0:00:35]} Bg5 {[%emt 0:01:27]} 28. Kf2 {[%emt 0:00:21]} Ra7 {[%emt 0:01:23]} 29. Ra1 {[%emt 0:00:45]} f5 {[%emt 0:00:59]} 30. g3 {[%emt 0:00:44]} h5 {[%emt 0:01:19]} 31. h4 {[%emt 0:01:32]} Bf6 {[%emt 0:00:46]} 32. Bc3 {[%emt 0:00:27]} Bf7 {[%emt 0:02:54]} 33. Qb2 {[%emt 0:05:44]} Re8 {[%emt 0:02:12]} 34. a4 {[%emt 0:00:27]} Qb8 {[%emt 0:00:08]} 35. f4 {[%emt 0:00:06]} Qd8 {[%emt 0:01:58]} 36. Kg1 {[%emt 0:00:47]} Bxh4 {[%emt 0:03:05]} 37. gxh4 {[%emt 0:00:20]} Qxh4 {[%emt 0:00:02]} 38. Rg2 {[%emt 0:00:13]} Nf6 {[%emt 0:00:36]} 39. Qf2 {[%emt 0:04:03]} 1-0